bitfinex-derivatives/quotes_ETHF0:USTF0_20260201
["timestamp","ask_amount","ask_price","bid_price","bid_amount"]
[1769987677021,0.21286293,2261.9,2261.1,0.00431704]
[1769987677216,0.22131,2261.6,2260.1,47.30531922]
[1769987677528,0.21286293,2261.5,2260.1,47.30531922]
[1769987677722,0.21286293,2261.0,2260.1,3.979]
[1769987678121,0.22134,2261.3,2260.1,3.979]
[1769987678322,0.21286293,2260.7,2260.1,3.98222171]
[1769987678522,0.22135,2261.2,2260.1,3.98222171]
[1769987678822,0.22136,2261.1,2260.1,3.98222171]
[1769987679021,0.21286293,2260.7,2260.1,3.98222171]
[1769987679220,0.21286293,2260.4,2260.1,0.00322171]
[1769987679419,0.21286293,2260.7,2260.1,0.00322171]
[1769987679924,0.22136,2261.1,2260.1,0.00322171]
[1769987680128,0.22142,2260.5,2259.3,6.41292526]
[1769987680425,0.22136,2261.1,2259.4,2.43292526]
[1769987680822,0.00544469,2261.3,2259.4,2.43292526]
[1769987681124,2.4914429,2261.3,2259.4,2.43821497]
[1769987681320,0.22137,2261.0,2259.4,2.43821497]
[1769987681526,2.4914429,2261.3,2259.4,2.43821497]
[1769987681527,0.22138,2260.9,2259.4,2.43821497]
[1769987681921,0.00544469,2261.3,2259.4,2.43821497]
[1769987682426,0.22139,2260.8,2259.4,2.43821497]
[1769987682624,0.22143,2260.4,2259.4,0.00528971]
[1769987682924,2.70743821,2260.3,2258.4,2.43292526]
[1769987683528,2.70743821,2260.3,2258.3,27.863]
[1769987683529,0.22144,2260.3,2258.6,2.43292526]
[1769987683823,2.48599821,2260.8,2258.6,2.43292526]
[1769987684027,0.22138,2260.9,2258.6,2.4385028]
[1769987684424,7.26547771,2260.8,2258.6,2.4385028]
[1769987684621,0.22143,2260.4,2258.6,2.4385028]
[1769987684929,0.22145,2260.2,2258.6,2.4385028]
[1769987685122,0.22137,2261.0,2258.6,2.4385028]
[1769987685326,0.22142,2260.5,2258.9,2.43292526]
[1769987685526,0.22146,2260.1,2258.9,2.43292526]
[1769987686128,0.22139,2260.8,2258.9,2.43292526]
[1769987686328,0.22143,2260.4,2258.9,2.43292526]
[1769987686631,0.22145,2260.2,2258.9,2.43292526]
[1769987686929,2.47703364,2260.1,2258.6,0.00557754]
[1769987687223,0.2215,2259.7,2258.6,2.54937878]
[1769987687427,0.00568251,2259.7,2258.6,6.53237878]
[1769987687626,0.00568251,2259.7,2258.7,2.54380124]
[1769987687827,0.22144,2260.3,2258.7,2.54380124]
[1769987688332,0.2214,2260.7,2258.7,2.54380124]
[1769987688529,0.22141,2260.6,2258.7,2.54380124]
[1769987688825,0.22600811,2260.6,2258.7,2.76539124]
[1769987689028,0.22600811,2260.6,2258.8,2.54380124]
[1769987689228,0.22142,2260.5,2258.8,2.54380124]
[1769987689430,0.00459811,2260.6,2258.8,2.54380124]
[1769987689629,0.22135,2261.2,2259.5,2.54380124]
[1769987689826,0.2214,2260.8,2259.5,2.54380124]
[1769987690028,0.22135,2261.2,2259.5,2.54380124]
[1769987690329,0.22139,2260.9,2259.5,2.54380124]
[1769987690526,0.00354271,2260.9,2259.5,2.76531124]
[1769987690730,0.22141,2260.7,2259.5,2.54380124]
[1769987690929,0.22141,2260.7,2258.8,4.20558]
[1769987690930,2.48163175,2259.9,2258.6,0.00557754]
[1769987691128,0.22147,2260.0,2258.6,2.54937878]
[1769987691330,3.984,2260.7,2258.8,2.54380124]
[1769987691528,0.00354271,2260.9,2259.0,2.54380124]
[1769987691737,0.00354271,2260.9,2259.0,2.76536124]
[1769987692030,0.22492271,2260.9,2259.0,2.54380124]
[1769987692232,0.22141,2260.6,2259.0,2.54380124]
[1769987692430,0.22144,2260.3,2259.0,2.54380124]
[1769987692831,0.22147,2260.0,2258.9,3.984]
[1769987693032,0.22147,2260.0,2258.9,6.52780124]
[1769987693233,2.47703364,2260.7,2259.0,2.54380124]
[1769987693433,0.00354271,2260.9,2259.0,2.54380124]
[1769987693636,0.22145,2260.2,2259.0,2.54380124]
[1769987693834,2.48057635,2260.9,2259.0,2.54380124]
[1769987694040,0.00459811,2260.5,2259.0,2.54380124]
[1769987694238,0.00459811,2260.6,2259.0,2.54380124]
[1769987694439,0.00459811,2260.8,2259.0,2.54380124]
[1769987694632,0.22147,2260.0,2258.7,40.8]
[1769987694835,0.22147,2260.0,2258.7,43.34380124]
[1769987695038,0.22147,2260.0,2258.8,2.54380124]
[1769987695238,0.22143,2260.4,2258.8,2.54380124]
[1769987695839,0.22144,2260.3,2258.8,2.54380124]
[1769987696040,0.00354271,2260.9,2258.8,2.54380124]
[1769987696337,0.22145,2260.2,2258.8,6.52780124]
[1769987696638,2.47703364,2260.6,2258.9,2.54380124]
[1769987696831,2.48163175,2260.6,2258.9,2.54380124]
[1769987697031,2.47703364,2260.6,2258.9,2.54380124]
[1769987697239,0.00354271,2260.9,2258.9,2.54380124]
[1769987697432,0.22145,2260.2,2258.9,2.54380124]
[1769987697741,0.22139,2260.8,2258.9,2.54380124]
[1769987698040,2.48163175,2260.6,2258.9,2.54380124]
[1769987698242,0.22145,2260.2,2258.9,2.54380124]
[1769987698741,0.22139,2260.8,2258.9,2.54380124]
[1769987699140,0.00354271,2260.9,2259.1,2.54380124]
[1769987699337,0.00354271,2260.9,2259.3,2.54380124]
[1769987699541,0.00354271,2260.9,2259.5,2.54380124]
[1769987699938,0.22141,2260.6,2259.4,40.8]
[1769987700145,0.00354271,2260.9,2259.0,2.54380124]
[1769987700339,2.45403679,2262.2,2260.4,2.54380124]
[1769987700544,2.45403679,2262.7,2261.0,2.54380124]
[1769987700836,0.22122,2262.5,2260.6,2.54380124]
[1769987701037,2.45403679,2262.7,2260.8,2.76518124]
[1769987701233,2.45403679,2262.3,2260.8,2.54380124]
[1769987701435,2.46163467,2262.3,2260.8,2.54724244]
[1769987701638,37.1586691,2262.8,2261.2,2.54380124]
[1769987701839,2.45403679,2263.6,2261.8,2.76509124]
[1769987702043,2.45403679,2263.6,2260.8,0.0034412]
[1769987702044,4.79834084,2263.5,2262.0,2.54380124]
[1769987702337,4.4680778,2263.9,2262.2,2.54380124]
[1769987702536,2.45403679,2264.5,2262.2,2.54380124]
[1769987702741,2.45403679,2265.2,2263.1,2.54380124]
[1769987702935,2.45403679,2265.7,2263.9,2.54380124]
[1769987703141,2.47703364,2265.5,2263.9,2.54380124]
[1769987703336,2.45403679,2264.8,2263.4,2.54380124]
[1769987703541,4.7817207,2264.8,2263.3,2.54380124]
[1769987703840,11.14733412,2265.2,2263.3,2.54380124]
[1769987703841,0.00459811,2265.6,2264.6,0.22101]
[1769987704043,2.45403679,2266.9,2265.1,2.54380124]
[1769987704242,2.47703364,2266.9,2265.3,2.54380124]
[1769987704440,4.93107043,2266.3,2265.1,3.32e-06]
[1769987704642,2.69795364,2265.6,2263.4,2.54380124]
[1769987704841,2.47703364,2265.6,2263.4,2.54380124]
[1769987705041,2.69790364,2266.1,2264.1,2.54380124]
[1769987705341,2.47703364,2264.5,2262.0,2.54380124]
[1769987705546,2.47703364,2263.9,2262.1,6.52580124]
[1769987705746,2.47703364,2264.4,2262.3,2.54380124]
[1769987706241,0.00480332,2264.5,2262.3,2.54380124]
[1769987706450,0.00480332,2264.5,2263.2,2.54380124]
[1769987706745,2.47703364,2265.8,2263.4,2.54380124]
[1769987706950,2.47703364,2264.6,2262.9,2.54380124]
[1769987707147,2.47703364,2265.2,2263.0,2.54380124]
[1769987707342,2.47703364,2265.0,2263.0,2.54380124]
[1769987707546,2.47703364,2264.8,2263.0,2.54380124]
[1769987707745,2.44845544,2265.3,2263.2,2.53687101]
[1769987707944,2.44845544,2266.1,2263.5,2.53687101]
[1769987708148,2.44845544,2266.1,2263.4,0.22113]
[1769987708149,2.44845544,2266.1,2263.7,2.53687101]
[1769987708350,2.44845544,2266.1,2263.9,2.53687101]
[1769987708548,2.44845544,2265.9,2263.9,2.53687101]
[1769987708747,2.44845544,2265.7,2263.8,3.981]
[1769987708948,2.44845544,2265.7,2263.9,2.53687101]
[1769987709643,2.44845544,2265.5,2263.7,0.00322281]
[1769987709850,2.44845544,2265.5,2263.7,2.54009382]
[1769987710043,2.44845544,2266.4,2264.0,2.53687101]
[1769987710349,2.44845544,2265.8,2264.0,2.53687101]
[1769987710551,2.44845544,2265.3,2263.7,0.00322281]
[1769987710845,2.66950544,2264.3,2262.5,6.51687101]
[1769987711045,0.22107,2264.1,2262.5,6.51687101]
[1769987711245,2.66955544,2263.8,2262.0,2.53687101]
[1769987711446,2.44845544,2263.8,2262.2,2.53687101]
[1769987711747,2.44845544,2263.9,2262.3,44.78]
[1769987711948,2.44845544,2262.8,2261.4,2.53687101]
[1769987712148,2.66964544,2262.8,2261.0,3.98]
[1769987712345,2.44845544,2263.8,2261.1,2.75823101]
[1769987712543,2.44845544,2263.5,2261.4,2.53687101]
[1769987712743,2.66959544,2263.4,2261.6,2.53687101]
[1769987712948,0.00322281,2263.9,2262.2,2.53687101]
[1769987713255,2.45167825,2263.9,2262.4,2.53687101]
[1769987713446,2.44845544,2263.2,2262.2,0.00399152]
[1769987713648,2.66966544,2262.7,2261.6,3.98]
[1769987713848,2.44845544,2262.5,2261.6,3.98]
[1769987714049,2.44845544,2263.5,2261.7,2.53687101]
[1769987714249,2.66962544,2263.1,2261.6,40.8]
[1769987714449,2.66964544,2262.9,2261.6,3.98]
[1769987714651,2.66966544,2262.7,2261.6,0.00501371]
[1769987714854,2.44845544,2262.7,2261.6,0.00501371]
[1769987715055,2.66957544,2263.6,2261.8,2.53687101]
[1769987715260,2.44845544,2263.4,2261.8,2.53687101]
[1769987715762,0.2212,2262.7,2261.6,0.00501371]
[1769987715961,2.66969544,2262.4,2261.6,0.00501371]
[1769987716158,2.44845544,2262.4,2261.6,0.00501371]
[1769987716361,2.44845544,2262.8,2261.6,0.00501371]
[1769987716856,0.22123,2262.5,2261.6,0.00501371]
[1769987717051,2.44845544,2262.5,2261.6,0.00501371]
[1769987717256,2.66970544,2262.3,2261.1,3.98]
[1769987717555,2.66971544,2262.1,2261.1,3.98]
[1769987717761,2.44845544,2263.3,2261.2,2.53687101]
[1769987717962,2.44845544,2263.0,2261.2,2.53687101]
[1769987718260,2.66964544,2262.9,2261.2,2.54209554]
[1769987718457,2.44845544,2263.8,2261.9,0.22128]
[1769987718657,2.44845544,2263.8,2261.2,0.00522453]
[1769987718658,2.44845544,2263.8,2262.0,2.53687101]
[1769987718855,2.44845544,2263.6,2261.4,2.53687101]
[1769987719064,2.44845544,2263.4,2261.2,2.54209554]
[1769987719563,2.44845544,2262.9,2261.2,2.54209554]
[1769987720165,2.66964544,2262.9,2261.2,2.54209554]
[1769987720463,0.00350704,2263.4,2261.2,2.54209554]
[1769987720464,2.66969544,2262.3,2261.2,0.00522453]
[1769987720661,0.22128,2261.9,2261.2,0.00522453]
[1769987720860,0.22122,2262.6,2261.2,2.54209554]
[1769987721258,2.44845544,2262.3,2261.2,0.00522453]
[1769987721460,2.44845544,2261.8,2259.0,2.53687101]
[1769987721662,0.22143,2260.4,2259.0,2.53687101]
[1769987721956,2.44845544,2260.4,2259.0,2.53687101]
[1769987722163,2.44845544,2260.4,2258.9,3.98]
[1769987722365,2.67495172,2260.4,2258.9,0.00477507]
[1769987722666,2.44845544,2259.5,2257.6,2.53687101]
[1769987723064,2.44845544,2260.0,2258.0,2.53687101]
[1769987723262,2.44845544,2260.0,2258.2,2.53687101]
[1769987723457,2.45352172,2260.4,2258.2,2.75851101]
[1769987723665,2.44845544,2260.1,2258.4,2.53687101]
[1769987723862,2.44845544,2260.1,2258.3,44.781]
[1769987724067,2.44845544,2259.7,2258.2,0.00520919]
[1769987724262,2.44845544,2259.3,2257.7,3.981]
[1769987724767,2.66999544,2259.3,2257.7,3.981]
[1769987725157,2.44845544,2258.5,2257.0,40.8]
[1769987725460,2.44845544,2257.8,2255.5,2.53687101]
[1769987725664,2.44845544,2257.6,2255.5,2.53687101]
[1769987725864,2.44845544,2257.6,2255.7,2.53687101]
[1769987726067,2.44845544,2258.3,2255.9,2.53687101]
[1769987726258,2.44845544,2258.3,2256.1,2.53687101]
[1769987726661,0.00475737,2258.5,2256.7,2.53687101]
[1769987726857,0.22163,2258.4,2256.0,2.53687101]
[1769987727063,0.22168,2257.8,2256.0,6.51987101]
[1769987727265,2.44845544,2256.7,2254.8,3.983]
[1769987727562,2.44845544,2256.2,2254.8,3.983]
[1769987727958,2.44845544,2256.2,2254.2,2.53687101]
[1769987728366,2.45198823,2256.2,2254.4,2.53687101]
[1769987728567,2.45198823,2256.2,2253.9,16.66577224]
[1769987728568,2.44845544,2254.8,2252.1,2.53687101]
[1769987728870,2.44845544,2254.0,2252.2,2.53687101]
[1769987729160,2.44845544,2254.0,2252.1,3.985]
[1769987729364,2.44845544,2253.5,2251.1,2.53687101]
[1769987729561,2.44845544,2253.0,2251.1,0.0038699]
[1769987729765,2.44845544,2252.6,2251.1,0.0038699]
[1769987730164,2.44845544,2252.6,2251.1,2.54074091]
[1769987730364,2.44845544,2253.4,2251.5,2.53687101]
[1769987730564,2.44845544,2253.4,2251.1,0.0038699]
[1769987730858,2.44845544,2253.4,2251.0,2.53687101]
[1769987730859,2.44845544,2252.0,2250.0,2.53687101]
[1769987731064,2.44845544,2251.5,2248.6,27.911]
[1769987731267,2.44845544,2250.0,2247.2,2.53687101]
[1769987731459,2.44845544,2249.5,2247.2,2.53687101]
[1769987731764,2.44845544,2249.2,2247.2,2.53687101]
[1769987731965,2.45265671,2249.2,2247.5,2.53687101]
[1769987732164,2.45265671,2249.2,2247.2,0.00437204]
[1769987732365,0.00420127,2249.2,2248.7,2.76232873]
[1769987732569,2.44845544,2250.2,2248.7,0.22545772]
[1769987732868,2.44845544,2250.2,2248.3,2.53687101]
[1769987733064,2.44845544,2250.8,2248.7,2.53687101]
[1769987733267,2.44845544,2250.8,2249.0,2.53687101]
[1769987733466,0.0056078,2250.8,2249.2,2.53687101]
[1769987733666,2.44845544,2251.3,2249.8,2.53687101]
[1769987734072,2.44845544,2252.6,2249.8,2.53687101]
[1769987734265,2.44845544,2251.3,2249.0,0.00557438]
[1769987734461,2.44845544,2250.8,2249.0,0.00557438]
[1769987734766,2.45413985,2250.8,2249.0,0.00557438]
[1769987734974,2.44845544,2249.1,2246.1,2.53687101]
[1769987735177,2.44845544,2248.5,2246.1,2.53687101]
[1769987735467,2.44845544,2248.5,2246.0,3.992]
[1769987735468,2.44845544,2249.0,2247.2,2.53687101]
[1769987735667,2.44845544,2250.0,2247.4,2.53687101]
[1769987735871,0.00395814,2250.0,2247.9,2.53687101]
[1769987736072,0.00395814,2250.0,2248.4,0.22545772]
[1769987736270,2.45241358,2250.0,2248.5,3.993]
[1769987736470,0.00395814,2250.0,2248.7,2.53687101]
[1769987736666,2.44845544,2251.2,2249.4,2.53687101]
[1769987736871,2.44845544,2250.8,2248.3,2.53687101]
[1769987737075,2.44845544,2250.6,2248.3,2.53687101]
[1769987737374,9.41734186,2251.1,2247.1,2.603]
[1769987737375,2.44845544,2250.0,2247.6,2.53687101]
[1769987737574,2.3327535,2249.6,2247.3,2.44293865]
[1769987738374,2.33785338,2250.0,2248.2,2.44293865]
[1769987738575,2.33785338,2250.0,2247.7,2.44293865]
[1769987738773,2.3327535,2249.5,2247.9,2.44293865]
[1769987738971,2.3327535,2249.5,2247.3,2.44293865]
[1769987739169,2.3327535,2249.0,2247.2,0.00504421]
[1769987739371,2.3327535,2248.5,2247.2,0.00504421]
[1769987739580,2.3327535,2247.6,2245.4,2.44293865]
[1769987739772,2.3327535,2247.6,2245.7,2.44293865]
[1769987740173,2.3327535,2247.1,2245.7,0.22545772]
[1769987740377,2.3327535,2247.1,2245.5,2.44293865]
[1769987740579,0.00515902,2247.1,2245.7,2.44293865]
[1769987740777,0.00515902,2247.1,2245.7,6.44093865]
[1769987740973,2.33791252,2247.1,2245.2,6.44093865]
[1769987741270,2.3327535,2246.8,2245.2,3.998]
[1769987741474,0.00515902,2247.1,2245.8,2.44293865]
[1769987741672,0.00515902,2247.1,2245.3,0.22291]
[1769987741673,2.33791252,2247.1,2245.3,2.44293865]
[1769987741977,2.3327535,2246.9,2245.0,0.00446162]
[1769987742175,2.3327535,2246.9,2245.4,2.44293865]
[1769987742372,0.00515902,2247.1,2246.1,0.22545772]
[1769987742672,0.00515902,2247.1,2245.7,6.44193865]
[1769987743076,2.3327535,2248.1,2246.1,2.44293865]
[1769987743372,2.3327535,2246.9,2245.0,0.00446162]
[1769987743572,5.42334186,2247.0,2242.8,2.44293865]
[1769987743573,2.3327535,2244.9,2242.8,2.44293865]
[1769987743773,2.3327535,2244.5,2242.2,2.44293865]
[1769987743967,2.3327535,2244.5,2242.3,41.02321]
[1769987744270,2.3327535,2245.3,2243.3,2.44293865]
[1769987744468,2.33608085,2245.3,2243.3,0.00480911]
[1769987744671,2.3327535,2245.2,2243.4,4.001]
[1769987744867,2.3327535,2245.2,2243.4,2.44293865]
[1769987745066,2.3327535,2245.2,2243.3,4.00680911]
[1769987745268,0.22294,2245.1,2243.3,0.00480911]
[1769987745571,0.00332735,2245.3,2243.3,2.44774776]
[1769987745777,2.33608085,2245.3,2243.5,2.44293865]
[1769987745977,0.00332735,2245.3,2243.9,2.44293865]
[1769987746171,2.33608085,2245.3,2243.4,2.44293865]
[1769987746377,2.33608085,2245.3,2243.9,0.44742228]
[1769987746572,0.00332735,2245.3,2244.1,0.44742228]
[1769987746773,2.3327535,2246.5,2244.3,2.44293865]
[1769987746976,2.3327535,2246.5,2244.5,2.44293865]
[1769987747179,2.3327535,2246.5,2244.8,0.44742228]
[1769987747378,2.3327535,2246.5,2244.7,2.44293865]
[1769987747575,4.003,2248.0,2244.7,2.44293865]
[1769987747774,2.46879908,2247.3,2245.6,2.33933009]
[1769987747980,2.69155908,2246.9,2245.6,0.00319009]
[1769987748476,2.46879908,2246.9,2245.6,0.00319009]
[1769987748981,2.46879908,2248.5,2245.6,2.34252018]
[1769987749173,2.46879908,2249.1,2247.2,2.56206009]
[1769987749377,2.46879908,2249.1,2247.2,2.33933009]
[1769987749577,2.46879908,2248.9,2247.2,2.33933009]
[1769987749779,2.69135908,2248.9,2247.2,2.33933009]
[1769987749980,0.00404236,2248.9,2247.5,2.33933009]
[1769987750384,0.00404236,2248.9,2247.6,4.005]
[1769987750678,0.00404236,2248.9,2248.3,0.44421699]
[1769987750984,2.46879908,2249.5,2247.9,0.44421699]
[1769987751277,2.46879908,2249.0,2247.2,0.00509768]
[1769987751577,2.46879908,2248.5,2247.2,0.00509768]
[1769987751777,0.00409102,2248.5,2247.4,2.56203009]
[1769987752085,2.46879908,2250.1,2247.8,2.33933009]
[1769987752377,2.46879908,2250.3,2248.3,0.44012597]
[1769987752582,2.46879908,2249.6,2247.5,2.33933009]
[1769987752782,2.46879908,2249.8,2247.9,2.33933009]
[1769987752983,2.47420248,2249.8,2247.9,2.33933009]
[1769987753181,5.42334186,2249.7,2248.0,2.33933009]
[1769987753383,2.46879908,2249.3,2247.5,2.33933009]
[1769987753682,2.46879908,2249.3,2247.2,0.00509768]
[1769987753683,2.46879908,2249.2,2247.4,2.33933009]
[1769987753983,2.69133908,2249.2,2247.4,2.33933009]
[1769987754176,2.46879908,2249.2,2247.4,2.33933009]
[1769987754382,2.47420248,2249.8,2248.1,0.44012597]
[1769987754585,2.69667248,2249.8,2247.7,2.33933009]
[1769987754878,2.46879908,2249.0,2247.3,40.8]
[1769987755076,2.46879908,2249.0,2247.5,2.77945606]
[1769987755276,0.2225,2249.5,2247.9,0.44012597]
[1769987755477,2.69132908,2249.3,2247.5,2.33933009]
[1769987755984,2.69132908,2249.3,2247.7,0.44012597]
[1769987756180,2.46879908,2249.0,2247.5,4.005]
[1769987756580,2.46879908,2249.7,2248.0,2.33933009]
[1769987756885,2.46879908,2249.7,2248.1,4.005]
[1769987757078,2.46879908,2249.7,2248.1,0.44012597]
[1769987757283,2.46879908,2249.7,2247.3,40.8]
[1769987757284,0.22255,2249.1,2248.2,0.44012597]
[1769987757582,2.46879908,2249.6,2247.7,2.33933009]
[1769987757782,2.69131908,2249.3,2247.8,0.44012597]
[1769987758076,2.46879908,2249.1,2247.4,2.33933009]
[1769987758278,0.22254,2249.2,2247.8,2.33933009]
[1769987758579,2.69128908,2249.6,2248.4,0.44012597]
[1769987758784,2.69128908,2249.6,2248.0,2.77945606]
[1769987758984,0.2225,2249.5,2248.3,0.44012597]
[1769987759285,2.46879908,2249.4,2248.0,2.33933009]
[1769987759480,2.69134908,2249.0,2247.0,2.33933009]
[1769987759684,0.22258,2248.8,2247.2,2.34442777]
[1769987759878,0.22258,2248.7,2247.5,0.44012597]
[1769987760177,0.22251,2249.4,2247.2,2.34442777]
[1769987760378,0.22249,2249.7,2248.3,2.33933009]
[1769987760580,0.2278734,2249.8,2248.3,2.33933009]
[1769987760783,0.0054034,2249.8,2248.3,2.33933009]
[1769987760986,0.0054034,2249.8,2248.7,2.33933009]
[1769987761181,2.69117908,2250.7,2249.1,2.33933009]
[1769987761378,2.46879908,2251.1,2249.0,0.44012597]
[1769987761578,0.22248,2249.7,2248.6,4.005]
[1769987761884,2.46879908,2250.0,2248.6,4.005]
[1769987762085,0.22237,2250.9,2249.3,2.33933009]
[1769987762283,35.28235659,2251.8,2249.3,2.33933009]
[1769987762284,0.22224,2252.2,2250.5,2.33933009]
[1769987762478,2.23692204,2252.9,2250.7,2.33933009]
[1769987762678,4.48355112,2252.9,2251.0,2.33933009]
[1769987762886,2.46879908,2253.6,2251.5,2.33933009]
[1769987763085,5.42334186,2253.9,2251.9,2.33933009]
[1769987763283,0.00548375,2253.9,2252.1,2.33933009]
[1769987763486,2.47428283,2253.9,2252.2,2.33933009]
[1769987763781,2.69092908,2253.2,2251.9,0.00439404]
[1769987763989,0.22215,2253.1,2251.9,0.00439404]
[1769987764287,0.22215,2253.1,2252.0,40.8]
[1769987764589,2.46879908,2252.7,2251.9,0.00035168]
[1769987764781,2.46879908,2253.0,2251.1,2.33933009]
[1769987764986,2.69095908,2253.0,2251.2,40.8]
[1769987765186,2.46879908,2253.0,2251.3,4.003]
[1769987765389,2.69105908,2252.0,2250.3,4.003]
[1769987765588,2.46879908,2252.0,2250.3,2.33933009]
[1769987765783,2.69108908,2251.7,2250.4,40.8]
[1769987765989,2.46879908,2251.7,2250.4,40.8]
[1769987766185,0.00415246,2252.0,2250.4,40.8]
[1769987766389,0.00415246,2252.0,2251.0,0.21392489]
[1769987766588,0.00415246,2252.0,2251.0,4.003]
[1769987766783,2.46879908,2252.8,2251.1,2.33933009]
[1769987766983,4.003,2253.7,2251.2,4.003]
[1769987766984,2.46879908,2252.5,2251.2,4.003]
[1769987767389,0.2222,2252.6,2251.2,4.003]
[1769987767390,2.46879908,2253.0,2251.7,0.21392489]
[1769987767693,4.003,2253.7,2250.8,2.33656565]
[1769987767694,2.42547258,2252.5,2250.8,2.33656565]
[1769987767990,0.22229,2251.6,2250.3,0.00429791]
[1769987768188,5.42334186,2252.4,2250.5,2.33656565]
[1769987768189,2.42547258,2252.2,2250.5,2.33656565]
[1769987768487,0.00384858,2252.5,2251.1,2.33656565]
[1769987768688,2.42932116,2252.5,2250.6,2.33656565]
[1769987768888,0.22225,2252.1,2250.7,4.002]
[1769987769085,0.22231,2251.5,2250.3,0.00429791]
[1769987769284,0.22233,2251.2,2250.3,0.00429791]
[1769987769485,2.42547258,2251.4,2250.3,0.00429791]
[1769987769691,2.64773258,2252.0,2250.3,2.34086356]
[1769987769886,2.42932116,2252.5,2250.8,2.33656565]
[1769987770089,0.00384858,2252.5,2251.5,0.21392489]
[1769987770294,0.22214,2253.2,2252.0,0.21392489]
[1769987770493,0.22214,2253.2,2252.0,4.002]
[1769987770695,0.2222,2252.6,2251.1,4.002]
[1769987770990,2.42547258,2252.7,2251.1,4.002]
[1769987771295,2.42547258,2252.7,2251.1,0.00485713]
[1769987771296,2.64769258,2252.4,2251.1,0.00485713]
[1769987771597,0.00528819,2252.7,2251.7,2.33656565]
[1769987771797,0.22216,2253.0,2252.3,0.21392489]
[1769987771993,0.22217,2252.9,2251.2,2.33656565]
[1769987772192,2.64760258,2253.3,2251.4,2.33656565]
[1769987772493,2.42547258,2253.9,2252.0,2.33656565]
[1769987772689,2.42547258,2253.9,2251.3,4.001]
[1769987772690,0.2221,2253.6,2252.2,2.33656565]
[1769987773088,0.2221,2253.6,2252.1,6.33756565]
[1769987773089,0.22214,2253.2,2252.1,6.33756565]
[1769987773400,0.2221,2253.6,2252.2,2.33656565]
[1769987773695,2.42547258,2253.8,2252.3,43.13656565]
[1769987773891,2.42547258,2253.8,2252.4,0.21392489]
[1769987774097,2.42547258,2253.8,2252.6,0.21392489]
[1769987774292,2.42547258,2253.8,2252.9,0.21392489]
[1769987774493,2.42547258,2253.8,2252.3,43.13656565]
[1769987774494,0.22218,2252.8,2251.4,4.0]
[1769987774688,0.22211,2253.5,2251.7,0.21392489]
[1769987774889,0.00334687,2253.9,2253.1,0.21392489]
[1769987775094,2.42547258,2254.6,2253.2,4.0]
[1769987775394,2.42547258,2255.1,2253.3,2.33656565]
[1769987775896,2.42547258,2255.1,2253.3,2.55049054]
[1769987776096,0.22199,2254.7,2253.3,2.34225223]
[1769987776290,0.22202,2254.4,2253.5,0.21392489]
[1769987776495,2.65162606,2255.1,2253.8,0.21392489]
[1769987776691,2.65162606,2255.1,2253.3,2.34225223]
[1769987776692,0.00420348,2255.1,2254.4,0.21392489]
[1769987776895,2.64732258,2256.1,2254.9,0.21392489]
[1769987777091,2.30723129,2257.4,2254.9,0.21392489]
[1769987777092,2.42547258,2257.1,2255.2,2.33656565]
[1769987777291,2.42547258,2257.1,2255.0,3.999]
[1769987777292,2.42547258,2258.1,2255.8,2.33656565]
[1769987777494,11.6414374,2258.2,2256.0,2.55049054]
[1769987777693,2.42547258,2258.2,2256.5,2.33656565]
[1769987777890,2.42547258,2258.2,2256.3,3.999]
[1769987777891,2.42547258,2257.8,2256.3,3.999]
[1769987778096,0.22166,2258.0,2256.5,2.33656565]
[1769987778291,2.42547258,2258.0,2255.2,2.33656565]
[1769987778500,0.22178,2256.8,2255.3,2.33656565]
[1769987778694,2.42547258,2257.5,2255.3,2.33656565]
[1769987778894,2.42547258,2256.2,2254.6,2.33656565]
[1769987779101,2.42547258,2256.2,2254.4,3.998]
[1769987779102,0.22189,2255.7,2254.4,3.998]
[1769987779295,0.22189,2255.7,2254.5,3.998]
[1769987779599,2.42547258,2256.8,2255.1,2.33656565]
[1769987779800,2.42547258,2257.3,2255.1,2.33656565]
[1769987779996,2.64732258,2256.1,2254.6,6.33356565]
[1769987780302,0.22188,2255.8,2254.5,0.00522076]
[1769987780498,2.42547258,2256.2,2254.6,40.8]
[1769987780802,2.64734258,2255.9,2254.6,40.8]
[1769987780997,2.42547258,2255.9,2254.5,0.00522076]
[1769987781200,0.00294592,2256.2,2254.6,2.33656565]
[1769987781402,2.42547258,2255.2,2252.9,2.33656565]
[1769987781699,0.22196,2255.1,2253.1,2.33656565]
[1769987782004,2.42547258,2254.4,2252.6,2.33656565]
[1769987782195,2.42547258,2254.3,2252.8,2.33656565]
[1769987782399,0.00553815,2254.3,2252.8,2.3410008]
[1769987782596,0.00553815,2254.3,2253.0,2.33656565]
[1769987783201,2.42547258,2255.3,2253.0,2.33656565]
[1769987783503,2.42547258,2255.3,2252.5,9.918]
[1769987783504,2.64765258,2252.8,2250.9,43.13656565]
[1769987783698,0.22219,2252.7,2251.1,0.00443515]
[1769987783902,0.22219,2252.7,2251.0,0.00443515]
[1769987784096,2.42547258,2253.7,2251.2,2.33656565]
[1769987784303,2.42547258,2253.5,2251.2,2.33656565]
[1769987784498,2.42547258,2253.5,2251.2,2.34020471]
[1769987784499,2.64760258,2253.3,2251.2,2.34020471]
[1769987784999,2.64760258,2253.3,2251.5,2.33656565]
[1769987785302,2.42953124,2253.5,2252.0,2.33656565]
[1769987785502,2.42547258,2253.4,2252.1,3.996]
[1769987785704,0.22222,2252.4,2251.2,0.00363906]
[1769987786203,0.22222,2252.4,2251.4,0.00443515]
[1769987786504,0.22222,2252.4,2251.3,0.00443515]
[1769987786701,0.22222,2252.4,2251.5,0.00443515]
[1769987786996,0.00405866,2253.5,2251.2,0.00363906]
[1769987786997,0.22214,2253.1,2251.3,2.33656565]
[1769987787204,2.42547258,2253.2,2251.3,2.33656565]
[1769987787403,0.22216,2252.9,2251.6,0.00443515]
[1769987787598,0.22216,2252.9,2251.7,3.997]
[1769987787800,0.00405866,2253.5,2251.7,6.33356565]
[1769987787999,0.22216,2253.0,2251.7,2.33656565]
[1769987788199,2.42953124,2253.5,2252.2,0.00443515]
[1769987788402,2.42953124,2253.5,2251.9,2.33656565]
[1769987788599,2.42547258,2252.6,2251.2,0.00363906]
[1769987789004,0.22223,2252.3,2251.2,0.00363906]
[1769987789406,0.22223,2252.3,2251.3,0.00443515]
[1769987789806,0.22223,2252.3,2251.4,0.00443515]
[1769987790106,2.64772258,2252.1,2251.2,0.00363906]
[1769987790305,0.22228,2251.7,2250.2,2.33656565]
[1769987790504,0.22231,2251.5,2249.7,2.33656565]
[1769987790799,2.42547258,2251.5,2249.8,47.13356565]
[1769987791104,35.28235659,2252.8,2249.8,47.13356565]
[1769987791105,0.22236,2251.0,2249.8,40.8]
[1769987791307,2.42547258,2250.9,2249.8,0.00380438]